bitfinex/quotes_SOLUSD_20250630
["timestamp","ask_amount","ask_price","bid_price","bid_amount"]
[1751309038726,5.67229843,155.93,155.88,24.32194729]
[1751309039018,0.1,155.94,155.91,6.41395676]
[1751309039229,0.1,155.94,155.92,5.67229843]
[1751309039398,0.1,155.94,155.88,24.61613108]
[1751309039597,0.1,155.94,155.91,5.67229843]
[1751309039797,0.1,155.94,155.89,6.41477965]
[1751309040115,5.77229843,155.94,155.89,12.08707808]
[1751309040306,0.1,155.94,155.9,5.67229843]
[1751309040901,0.1,155.94,155.91,5.67229843]
[1751309041208,0.1,155.94,155.92,5.67229843]
[1751309041514,0.1,155.94,155.9,12.08652433]
[1751309041691,0.1,155.94,155.91,5.67229843]
[1751309041898,0.1,155.94,155.92,5.67229843]
[1751309042305,0.1,155.94,155.9,6.69854904]
[1751309042501,0.1,155.94,155.9,12.08652433]
[1751309043106,5.77229843,155.94,155.9,5.67229843]
[1751309043314,5.67229843,155.93,155.89,6.41461744]
[1751309044499,12.18504417,155.94,155.89,12.08691587]
[1751309044927,5.77229843,155.94,155.89,12.08691587]
[1751309045725,0.1,155.94,155.89,12.08691587]
[1751309046028,12.18507436,155.94,155.89,12.08691587]
[1751309046522,12.18507436,155.94,155.9,5.67229843]
[1751309046723,0.1,155.94,155.9,12.08657321]
[1751309049135,0.1,155.94,155.9,5.67229843]
[1751309051121,6.5128102,155.94,155.89,6.41477965]
[1751309051338,12.18510863,155.94,155.89,12.08707808]
[1751309051824,5.77229843,155.94,155.89,12.08707808]
[1751309052208,6.5128008,155.94,155.9,5.67229843]
[1751309052607,5.5128008,155.94,155.9,5.67229843]
[1751309052911,12.08467421,155.95,155.9,5.67229843]
[1751309053230,6.41237578,155.95,155.91,5.67229843]
[1751309053407,12.08467421,155.95,155.9,5.67229843]
[1751309053609,5.67229843,155.94,155.89,12.08689738]
[1751309054617,12.08517886,155.94,155.89,12.08689738]
[1751309055229,5.67229843,155.93,155.89,12.08689738]
[1751309055533,5.67229843,155.93,155.88,12.08729935]
[1751309056613,12.08563844,155.93,155.88,6.41500092]
[1751309056911,12.08563844,155.93,155.88,12.08729935]
[1751309057920,5.67229843,155.9,155.86,18.83878065]
[1751309058122,5.67229843,155.9,155.86,12.87229843]
[1751309058425,5.67229843,155.9,155.86,7.2]
[1751309059415,5.67229843,155.89,155.86,7.2]
[1751309059828,12.08725859,155.89,155.86,7.2]
[1751309060930,5.67229843,155.87,155.86,7.2]
[1751309061432,5.67229843,155.88,155.86,7.2]
[1751309061827,6.41560274,155.87,155.86,7.2]
[1751309062628,12.08790117,155.87,155.86,7.2]
[1751309063941,18.37740117,155.87,155.8,13.14648222]
[1751309064113,5.67229843,155.84,155.8,7.18]
[1751309065022,12.0892495,155.84,155.8,7.18]
[1751309065226,5.67229843,155.83,155.8,7.18]
[1751309065723,12.0892495,155.84,155.8,7.18]
[1751309067653,5.67229843,155.83,155.8,7.18]
[1751309068915,5.67229843,155.84,155.8,13.59845735]
[1751309069216,6.41573626,155.87,155.81,24.32194729]
[1751309069416,12.08803469,155.87,155.83,5.67229843]
[1751309069748,12.08803469,155.87,155.82,5.67229843]
[1751309069749,5.67229843,155.86,155.82,5.67229843]
[1751309069916,5.67229843,155.86,155.81,24.32194729]
[1751309070111,5.67229843,155.84,155.8,7.18]
[1751309071934,12.08954799,155.83,155.8,7.18]
[1751309073319,5.67229843,155.82,155.8,7.18]
[1751309074443,12.0902645,155.82,155.8,7.18]
[1751309075022,6.41796607,155.82,155.8,7.18]
[1751309075837,12.08968112,155.83,155.8,7.18]
[1751309076152,6.41738269,155.83,155.8,7.18]
[1751309076451,12.08968112,155.83,155.8,7.18]
[1751309078656,5.67229843,155.83,155.8,7.18]
[1751309078823,12.08959531,155.83,155.8,7.18]
[1751309079146,5.67229843,155.83,155.8,7.18]
[1751309079355,6.41698419,155.84,155.8,7.18]
[1751309079557,5.67229843,155.83,155.8,7.18]
[1751309080043,12.08889618,155.85,155.8,19.27073372]
[1751309080256,1.80086157,155.88,155.82,5.67229843]
[1751309080257,1.6587,155.88,155.82,5.67229843]
[1751309080454,5.67229843,155.88,155.83,5.67229843]
[1751309080642,5.67229843,155.87,155.82,12.08973003]
[1751309080949,5.67229843,155.86,155.82,5.67229843]
[1751309081350,5.67229843,155.86,155.82,12.08983005]
[1751309081749,26.0,155.89,155.83,5.67229843]
[1751309082067,16.83965463,155.91,155.87,5.67229843]
[1751309084829,16.83965463,155.91,155.84,1.5194]
[1751309084830,10.4255733,155.91,155.88,5.67229843]
[1751309087856,10.4255733,155.91,155.9,5.67229843]
[1751309088050,10.4255733,155.91,155.88,25.82964886]
[1751309088242,10.4255733,155.91,155.89,5.67229843]
[1751309092752,10.4255733,155.91,155.88,25.82964886]
[1751309092753,16.83958994,155.91,155.88,7.18]
[1751309092938,22.51188837,155.91,155.88,7.18]
[1751309093342,5.67229843,155.9,155.88,7.18]
[1751309094942,6.41477965,155.89,155.88,7.18]
[1751309095568,12.08707808,155.89,155.88,7.18]
[1751309097662,6.41477965,155.89,155.88,7.18]
[1751309100443,12.08707808,155.89,155.88,7.18]
[1751309102155,6.41477965,155.89,155.88,7.18]
[1751309102469,6.41436818,155.9,155.88,7.18]
[1751309105071,12.08666661,155.9,155.88,7.18]
[1751309105776,0.1,155.96,155.93,26.0]
[1751309105949,0.1,155.96,155.95,24.32194729]
[1751309106154,0.1,155.96,155.95,24.60627043]
[1751309106348,0.1,155.96,155.95,18.64964886]
[1751309106550,0.1,155.96,155.95,24.32194729]
[1751309107372,0.1,155.96,155.95,5.67229843]
[1751309110483,0.1,155.96,155.95,12.08461006]
[1751309111958,0.1,155.96,155.95,12.3689332]
[1751309112158,0.2,155.98,155.96,19.07613357]
[1751309112360,0.1,156.01,156.0,44.933972]
[1751309112565,0.1,156.01,156.0,50.60627043]
[1751309113161,0.1,156.01,156.0,50.748432]
[1751309113365,0.1,156.01,156.0,57.215232]
[1751309113571,0.1,156.01,156.0,63.62548841]
[1751309113861,0.1,156.01,156.0,57.95318998]
[1751309114066,0.1,156.01,156.0,63.48332684]
[1751309115065,0.1,156.01,156.0,56.78874729]
[1751309115270,0.1,156.01,155.99,5.67229843]
[1751309116184,0.1,156.01,155.99,12.08294308]
[1751309116384,0.1,156.01,155.97,45.24364823]
[1751309116575,0.1,156.01,155.97,19.24364823]
[1751309117282,0.1,156.01,155.97,7.16]
[1751309117283,6.5098549,156.01,155.97,7.16]
[1751309117582,5.67229843,156.0,155.97,7.16]
[1751309117972,12.08261562,156.0,155.97,7.16]
[1751309118785,5.67229843,155.98,155.97,7.16]
[1751309118973,5.67229843,155.99,155.97,7.16]
[1751309119489,5.67229843,155.98,155.97,7.16]
[1751309119972,12.08337677,155.98,155.92,52.04194729]
[1751309120164,5.67229843,155.96,155.92,52.04194729]
[1751309120360,5.67229843,155.96,155.92,58.4554201]
[1751309120561,5.67229843,155.97,155.92,58.4554201]
[1751309121084,5.67229843,155.96,155.92,27.72]
[1751309121458,5.67229843,155.97,155.92,33.39229843]
[1751309121887,12.08337677,155.98,155.93,5.67229843]
[1751309122265,12.08337677,155.98,155.93,12.08537542]
[1751309122468,12.08330351,155.99,155.94,5.67229843]
[1751309122883,5.67229843,155.97,155.93,5.67229843]
[1751309123087,5.67229843,155.97,155.92,30.73537753]
[1751309123388,0.09407703,155.94,155.92,24.32194729]
[1751309123881,0.09407703,155.94,155.93,5.67229843]
[1751309124260,0.09407703,155.94,155.92,5.67229843]
[1751309125385,6.50683749,155.94,155.92,5.67229843]
[1751309125770,6.50683749,155.94,155.91,7.14]
[1751309125990,5.67229843,155.93,155.91,7.14]
[1751309126282,6.4135454,155.92,155.91,7.14]
[1751309126676,6.41324455,155.93,155.91,7.14]
[1751309127980,12.08554298,155.93,155.91,7.14]
[1751309128687,5.67229843,155.92,155.91,7.14]
[1751309128987,0.19407703,155.94,155.92,18.64964886]
[1751309129172,0.19407703,155.94,155.93,24.32194729]
[1751309130369,0.19407703,155.94,155.93,30.73508138]
[1751309130976,0.19407703,155.94,155.93,31.01940452]
[1751309131490,0.19407703,155.94,155.93,24.32194729]
[1751309132688,0.19407703,155.94,155.93,5.67229843]
[1751309133179,0.19407703,155.94,155.92,18.64964886]
[1751309133494,0.19407703,155.94,155.93,5.67229843]
[1751309133680,0.19407703,155.94,155.92,18.64964886]
[1751309133879,0.19407703,155.94,155.93,5.67229843]
[1751309135389,0.19407703,155.94,155.92,5.67229843]
[1751309135586,0.19407703,155.94,155.91,25.78964886]
[1751309135783,0.19407703,155.94,155.93,5.67229843]
[1751309136292,0.19407703,155.94,155.93,24.60627043]
[1751309136795,0.19407703,155.94,155.93,31.01940452]
[1751309136988,0.19407703,155.94,155.93,38.96810452]
[1751309137185,0.19407703,155.94,155.93,65.11026609]
[1751309137692,0.19407703,155.94,155.93,65.93026609]
[1751309140401,0.19407703,155.94,155.93,64.96810452]
[1751309142379,0.19407703,155.94,155.93,91.91026609]
[1751309142579,0.1,156.01,155.97,44.64964886]
[1751309142796,0.1,156.01,156.0,24.60627043]
[1751309142976,0.1,156.01,156.0,31.74627043]
[1751309143174,0.1,156.01,156.0,38.15652684]
[1751309144387,0.1,156.01,156.0,64.15652684]
[1751309145580,0.1,156.01,156.0,64.79755248]
[1751309145781,0.1,156.01,156.0,64.93971405]
[1751309145984,0.1,156.01,156.0,40.54351405]
[1751309147680,0.2,156.03,156.02,18.64964886]
[1751309147979,0.1,156.05,156.04,45.07613357]
[1751309148193,0.1,156.05,156.04,24.748432]
[1751309148579,0.1,156.05,156.04,50.748432]
[1751309148791,0.1,156.05,156.04,24.748432]
[1751309149612,0.1,156.08,156.07,51.3413533]
[1751309149791,0.1,156.08,156.07,57.01365173]
[1751309150402,0.1,156.08,156.07,56.72932859]
[1751309152501,0.1,156.08,156.07,57.01365173]
[1751309159715,0.1,156.08,156.07,83.9358133]
[1751309160501,0.1,156.08,156.07,83.79365173]
[1751309160806,0.1,156.08,156.07,56.87149016]
[1751309161197,0.1,156.08,156.05,88.2]
[1751309161398,0.1,156.08,156.06,5.67229843]
[1751309161597,0.1,156.08,156.07,5.67229843]
[1751309161799,0.1,156.08,156.05,93.87229843]
[1751309161998,6.50700779,156.08,156.05,88.2]
[1751309162199,6.50700779,156.08,156.04,12.81229843]
[1751309162200,12.17930622,156.08,156.04,7.14]
[1751309162401,5.67229843,156.07,156.04,7.14]
[1751309163193,12.07973022,156.07,156.04,7.14]
[1751309163426,5.67229843,156.06,156.04,7.14]
[1751309163606,5.67229843,156.05,156.04,7.14]
[1751309163921,5.67229843,156.06,156.04,7.14]
[1751309164104,6.40743179,156.07,156.04,7.14]
[1751309164299,0.1,156.08,156.04,19.22076467]
[1751309164500,0.1,156.08,156.06,5.67229843]
[1751309164923,0.1,156.08,156.04,13.54851363]
[1751309165116,0.1,156.08,156.05,5.67229843]
[1751309167210,0.1,156.08,156.06,5.67229843]
[1751309167407,0.1,156.08,156.05,12.08043426]
[1751309167721,12.17938984,156.08,156.04,7.14]
[1751309167917,14.8773474,156.08,156.04,7.14]
[1751309168225,6.50709141,156.08,156.04,7.14]
[1751309168628,0.1,156.08,156.04,13.54856581]
[1751309168921,0.1,156.08,156.04,15.51025599]
[1751309168922,6.50702343,156.08,156.04,15.51025599]
[1751309169120,14.87727942,156.08,156.04,7.14]
[1751309169421,6.50702343,156.08,156.04,7.14]
[1751309169627,0.1,156.08,156.04,13.54855246]
[1751309169808,6.5069989,156.08,156.04,7.14]
[1751309169997,0.1,156.08,156.04,21.9188269]
[1751309170203,6.50697998,156.08,156.04,7.14]
[1751309170609,0.1,156.08,156.06,8.37025599]
[1751309171026,0.1,156.08,156.05,8.37025599]
[1751309171324,0.1,156.08,156.07,8.37025599]
[1751309171526,0.1,156.08,156.06,8.37025599]
[1751309171903,0.1,156.08,156.05,6.40808685]
[1751309172123,0.1,156.08,156.05,14.77834284]
[1751309176209,0.1,156.08,156.07,8.37025599]
[1751309177323,0.1,156.08,156.07,14.77763729]
[1751309178939,0.1,156.08,156.06,6.40763066]
[1751309179119,0.1,156.08,156.06,14.77788665]
[1751309179310,0.1,156.08,156.07,8.37025599]
[1751309181534,0.1,156.08,156.07,14.77763729]
[1751309181720,0.1,156.08,156.07,8.37025599]
[1751309182128,0.1,156.08,156.06,33.42744351]
[1751309183028,0.1,156.08,156.06,14.77779465]
[1751309183634,0.1,156.08,156.06,8.37025599]
[1751309183938,0.1,156.08,156.05,8.37025599]
[1751309184239,6.50702306,156.08,156.04,15.51025599]
[1751309185717,14.87727905,156.08,156.04,7.14]
[1751309186131,6.50702306,156.08,156.04,15.51025599]
[1751309186616,0.1,156.08,156.04,21.91880078]
[1751309187116,0.1,156.08,156.04,21.91881791]
[1751309187815,0.1,156.08,156.05,5.64893355]
[1751309188717,0.1,156.08,156.06,5.64893355]
[1751309189736,0.1,156.08,156.06,12.05669504]
[1751309191338,0.1,156.08,156.06,12.05670821]
[1751309194621,0.1,156.08,156.07,5.64893355]
[1751309196822,0.1,156.08,156.07,12.05631485]
[1751309197353,0.1,156.08,156.07,5.64893355]
[1751309197730,0.1,156.08,156.06,12.0565701]
[1751309198244,0.1,156.08,156.07,5.64893355]
[1751309199634,0.1,156.08,156.06,5.64893355]
[1751309199839,0.1,156.08,156.06,12.05663452]
[1751309200528,0.1,156.08,156.06,5.64893355]
[1751309201234,0.1,156.08,156.05,30.70659453]
[1751309201429,0.1,156.08,156.05,12.05694567]
[1751309201633,0.1,156.08,156.05,5.64893355]
[1751309201865,0.1,156.08,156.06,5.64893355]
[1751309202034,0.1,156.08,156.07,5.64893355]
[1751309204754,0.1,156.08,156.07,12.05631485]
[1751309205351,0.1,156.08,156.05,6.40820249]
[1751309205547,0.1,156.08,156.05,12.05713604]
[1751309207852,0.1,156.08,156.06,5.64893355]
[1751309208867,0.1,156.08,156.07,24.60295771]
[1751309209169,0.1,156.08,156.07,30.25189126]
[1751309210256,0.1,156.08,156.07,24.60295771]
[1751309210464,0.1,156.08,156.07,30.25189126]
[1751309210644,0.1,156.08,156.07,36.65927256]
[1751309211342,0.1,156.08,156.07,30.70596371]
[1751309212150,0.1,156.08,156.07,5.64893355]
[1751309212349,0.1,156.08,156.06,5.64893355]
[1751309212764,0.1,156.08,156.05,24.80295771]
[1751309212973,0.1,156.08,156.05,11.8022424]
[1751309213178,0.1,156.08,156.06,5.64893355]
[1751309213544,0.1,156.08,156.07,5.64893355]
[1751309213857,0.1,156.08,156.06,5.64893355]
[1751309214056,0.1,156.08,156.05,5.84893355]
[1751309215166,5.64893355,156.07,156.05,0.2]
[1751309217270,6.40779187,156.06,156.05,0.2]
[1751309219255,12.05646702,156.07,156.05,0.2]
[1751309220077,21.98442378,156.08,156.05,0.2]
[1751309221374,0.95,156.06,156.05,0.2]
[1751309221851,0.95,156.06,156.05,5.84893355]
[1751309222053,0.95,156.06,156.05,12.25713604]
[1751309222875,0.95,156.06,156.05,0.2]
[1751309223375,0.95,156.06,156.05,30.9067849]
[1751309223553,0.95,156.06,156.05,31.19110804]
[1751309223876,0.95,156.06,156.05,30.9067849]
[1751309224759,0.95,156.06,156.05,24.49858241]
[1751309224956,0.95,156.06,156.05,30.9067849]
[1751309225675,0.95,156.06,156.05,31.19110804]
[1751309225885,0.95,156.06,156.05,63.41346961]
[1751309226480,0.1,156.08,156.06,18.933972]
[1751309226655,0.1,156.08,156.07,11.93053449]
[1751309226854,0.1,156.08,156.07,30.58018335]
[1751309227584,0.1,156.08,156.07,36.98756465]
[1751309231175,0.1,156.08,156.07,31.3386311]
[1751309231375,0.1,156.08,156.07,36.98756465]
[1751309237783,0.1,156.08,156.07,31.3386311]
[1751309237982,0.1,156.08,156.07,36.98756465]
[1751309238487,0.1,156.08,156.07,30.99028685]
[1751309241581,0.1,156.08,156.07,36.98756465]
[1751309242187,0.1,156.08,156.07,37.12972622]
[1751309243483,0.1,156.08,156.07,31.13244842]
[1751309244267,0.1,156.08,156.07,63.88814842]
[1751309244485,0.1,156.08,156.07,71.84073007]
[1751309247796,0.1,156.08,156.07,97.84073007]
[1751309250187,0.1,156.08,156.07,56.99028685]
[1751309251281,0.1,156.08,156.07,64.9428685]
[1751309251870,0.1,156.08,156.07,56.99028685]
[1751309252075,0.1,156.08,156.07,25.05703016]
[1751309252396,0.1,156.08,156.07,30.70596371]
[1751309255189,0.1,156.08,156.07,12.05631485]
[1751309255398,0.1,156.08,156.06,7.12]
[1751309255631,12.15592694,156.08,156.05,0.2]
[1751309255903,6.50699339,156.08,156.05,0.2]
[1751309256082,5.64893355,156.06,156.05,0.2]
[1751309256402,5.64893355,156.07,156.05,0.2]
[1751309256588,12.15592694,156.08,156.05,0.2]
[1751309256901,0.1,156.08,156.05,0.2]
[1751309257203,5.74893355,156.08,156.05,0.2]
[1751309257397,0.1,156.08,156.05,0.2]
[1751309257603,0.1,156.08,156.05,12.25711823]
[1751309257914,0.1,156.08,156.05,6.60818468]
[1751309261206,0.1,156.08,156.07,5.64893355]
[1751309261608,0.1,156.08,156.07,6.4073813]
[1751309262000,0.1,156.08,156.07,30.99028685]
[1751309264513,0.1,156.08,156.07,25.3413533]
[1751309264810,0.1,156.08,156.07,25.05703016]
[1751309265108,0.1,156.08,156.07,30.70596371]
[1751309265700,0.1,156.08,156.05,49.34050624]
[1751309265701,0.1,156.08,156.06,25.05726853]
[1751309265902,0.1,156.08,156.06,30.70620208]
[1751309268728,0.1,156.08,156.07,12.05631485]
[1751309269726,0.1,156.08,156.07,6.4073813]
[1751309272619,0.1,156.08,156.07,12.05631485]
[1751309273129,0.1,156.08,156.07,63.61141833]
[1751309273627,0.1,156.08,156.07,57.63102498]
[1751309278617,0.1,156.08,156.07,56.99028685]
[1751309279136,0.1,156.08,156.07,62.97275199]
[1751309282626,0.1,156.08,156.07,31.0394953]
[1751309282943,0.1,156.08,156.06,12.05670105]
[1751309283122,5.74893355,156.08,156.05,7.32]
[1751309283325,5.64893355,156.07,156.05,7.32]
[1751309283742,5.74893355,156.08,156.05,7.32]
[1751309283927,5.64893355,156.06,156.05,7.32]
[1751309284241,5.64893355,156.06,156.05,0.2]
[1751309286010,12.05672542,156.06,156.05,0.2]
[1751309289424,0.14216157,156.05,156.0,0.2]
[1751309289628,5.64893355,156.02,156.0,0.2]
[1751309290021,5.64893355,156.01,156.0,0.2]
[1751309291622,12.05877907,156.01,156.0,0.2]
[1751309293630,0.14216157,156.03,156.0,0.2]
[1751309293944,5.64893355,156.01,156.0,0.2]
[1751309296247,5.64893355,156.02,156.0,0.2]
[1751309297229,6.4091764,156.03,156.0,0.2]
[1751309297440,5.64893355,156.01,156.0,0.2]
[1751309298922,12.05877907,156.01,156.0,0.2]
[1751309299132,5.64893355,156.01,156.0,0.2]
[1751309302841,12.05877907,156.01,156.0,0.2]
[1751309303222,12.05877907,156.01,155.98,0.2]
[1751309303223,26.0,155.99,155.98,0.2]
[1751309303442,32.07541826,155.99,155.98,0.2]
[1751309303623,31.64893355,155.99,155.98,0.2]
[1751309304252,5.64893355,155.99,155.98,0.2]
[1751309304922,12.0596009,155.99,155.98,0.2]
[1751309306627,5.64893355,155.99,155.98,0.2]
[1751309307458,12.0596009,155.99,155.98,0.2]
[1751309308852,12.0596009,155.99,155.94,6.31269609]
[1751309309146,5.64893355,155.97,155.94,6.31269609]
[1751309309337,5.64893355,155.98,155.94,6.31269609]
[1751309309742,12.06004882,155.98,155.93,12.26188943]
[1751309309939,5.64893355,155.96,155.93,0.2]
[1751309310139,5.64893355,155.95,155.93,0.2]
[1751309312052,12.0615041,155.95,155.93,0.2]
[1751309312232,5.64893355,155.94,155.93,0.2]
[1751309313953,6.59893355,155.94,155.93,0.2]
[1751309314159,13.01165639,155.94,155.93,0.2]
[1751309314541,7.36272284,155.94,155.93,0.2]
[1751309315442,13.01165639,155.94,155.93,0.2]
[1751309316629,39.01165639,155.94,155.93,0.2]
[1751309317530,65.71165639,155.94,155.93,0.2]
[1751309321966,0.95,155.94,155.93,0.2]
[1751309322257,7.36272284,155.94,155.93,0.2]
[1751309322431,13.01165639,155.94,155.93,0.2]
[1751309322851,39.69165639,155.94,155.93,0.2]
[1751309325161,39.83381796,155.94,155.93,0.2]
[1751309328970,0.95,155.94,155.93,0.2]
[1751309329160,13.01165639,155.94,155.93,0.2]
[1751309330156,12.06165639,155.94,155.93,0.2]
[1751309340353,6.41272284,155.94,155.93,0.2]
[1751309341058,12.06165639,155.94,155.93,0.2]
[1751309342372,38.4881411,155.94,155.93,0.2]
[1751309342670,26.0,155.9,155.88,0.2]
[1751309342852,41.81338429,155.89,155.88,0.2]
[1751309343053,36.16445074,155.89,155.88,0.2]
[1751309343456,15.13338429,155.89,155.88,0.2]
[1751309345252,9.48445074,155.89,155.88,0.2]
[1751309348278,10.43445074,155.89,155.88,0.2]
[1751309352878,16.84923039,155.89,155.88,0.2]
[1751309353056,22.49816394,155.89,155.88,0.2]
[1751309354461,16.08338429,155.89,155.88,0.2]
[1751309354669,10.43445074,155.89,155.88,0.2]
[1751309355676,10.43445074,155.89,155.88,5.84893355]
[1751309355876,10.43445074,155.89,155.88,12.26412472]
[1751309358664,10.43445074,155.89,155.88,13.77912472]
[1751309364087,9.48445074,155.89,155.88,13.77912472]
[1751309364463,9.48445074,155.89,155.88,32.42877358]
[1751309365895,9.48445074,155.89,155.88,38.50419184]
[1751309366188,7.8132,156.02,155.89,19.07613357]
[1751309366373,5.64893355,155.98,155.92,5.99781015]
[1751309366575,15.07948541,155.97,155.92,5.64893355]
[1751309366775,15.07948541,155.97,155.91,7.04]
[1751309366999,15.07948541,155.97,155.92,5.64893355]
[1751309367690,15.07948541,155.97,155.91,7.04]
[1751309367691,5.64893355,155.95,155.91,7.04]
[1751309368693,6.41231163,155.95,155.91,12.68893355]
[1751309369599,12.06092098,155.96,155.91,19.10287548]
[1751309369776,12.06092098,155.96,155.91,12.68893355]
[1751309370084,12.06092098,155.96,155.91,7.04]
[1751309370290,5.64893355,155.95,155.91,7.04]
[1751309370892,12.06092098,155.96,155.91,12.68893355]
[1751309371495,12.06092098,155.96,155.91,7.04]
[1751309372502,12.06092098,155.96,155.91,12.68893355]
[1751309377006,5.64893355,155.95,155.91,7.04]
[1751309377583,5.64893355,155.95,155.9,5.64893355]
[1751309377584,7.5976,155.94,155.88,18.84964886]
[1751309377778,26.0,155.93,155.88,5.84893355]
[1751309378412,31.64893355,155.93,155.88,0.2]
[1751309378886,6.4135454,155.92,155.88,5.84893355]
[1751309379280,6.4135454,155.92,155.89,5.64893355]
[1751309380409,6.4135454,155.92,155.88,5.84893355]
[1751309381206,6.41313409,155.93,155.88,5.84893355]
[1751309381609,0.95,155.9,155.88,5.84893355]
[1751309382906,0.95,155.9,155.89,5.64893355]
[1751309385307,6.4139606,155.91,155.89,5.64893355]
[1751309385500,6.41313409,155.93,155.89,5.64893355]
[1751309387110,32.28893355,155.94,155.9,5.64893355]
[1751309387111,33.05280478,155.94,155.9,5.64893355]
[1751309387799,33.05280478,155.94,155.89,6.41460682]
[1751309387800,33.05280478,155.94,155.91,5.64893355]
[1751309389300,6.41231163,155.95,155.91,5.64893355]
[1751309390007,6.41231163,155.95,155.92,5.64893355]
[1751309390892,6.41190048,155.96,155.92,5.64893355]
[1751309392800,0.95,155.93,155.92,5.64893355]
[1751309393914,0.95,155.93,155.91,5.64893355]
[1751309395414,0.95,155.93,155.92,5.64893355]
[1751309396195,0.95,155.93,155.92,24.29858241]
[1751309396398,0.95,155.93,155.92,24.72506712]
[1751309397006,0.95,155.93,155.92,31.13861252]
[1751309397521,0.95,155.93,155.92,37.13642267]
[1751309397695,9.43055186,155.97,155.93,19.07613357]
[1751309397890,9.43055186,155.97,155.96,5.64893355]
[1751309400308,9.43055186,155.97,155.94,12.66893355]
[1751309400616,9.43055186,155.97,155.96,5.64893355]
[1751309401201,9.43055186,155.97,155.96,24.29858241]
[1751309402418,9.43055186,155.97,155.96,30.71048289]
[1751309402721,9.43055186,155.97,155.96,24.29858241]
[1751309404925,9.43055186,155.97,155.96,30.71048289]
[1751309405228,9.43055186,155.97,155.96,24.29858241]
[1751309405426,9.43055186,155.97,155.94,7.30432314]
[1751309405748,9.43055186,155.97,155.95,24.29858241]
[1751309406328,9.43055186,155.97,155.96,5.64893355]
[1751309407029,9.43055186,155.97,155.96,12.06083403]
[1751309411254,9.43055186,155.97,155.96,30.71048289]
[1751309411541,9.43055186,155.97,155.96,31.1369676]
[1751309411929,9.43055186,155.97,155.96,29.10525441]
[1751309414044,9.43055186,155.97,155.96,31.13960498]
[1751309415527,9.43055186,155.97,155.96,25.48803405]
[1751309415821,9.43055186,155.97,155.96,25.06154934]
[1751309416030,9.43055186,155.97,155.96,30.71312027]
[1751309417937,9.43055186,155.97,155.96,5.65157093]
[1751309419122,9.43055186,155.97,155.96,12.06347141]
[1751309421441,9.43055186,155.97,155.96,30.71312027]
[1751309424948,9.43055186,155.97,155.96,25.06154934]
[1751309425132,9.43055186,155.97,155.96,30.71312027]
[1751309430925,9.43055186,155.97,155.96,12.06347141]
[1751309433832,9.43055186,155.97,155.96,10.03012543]
[1751309441145,9.43055186,155.97,155.96,16.02793558]
[1751309441855,9.43055186,155.97,155.96,35.10406915]
[1751309442159,9.43055186,155.97,155.96,55.106259]
[1751309443050,11.90087681,156.02,155.96,55.106259]
[1751309443279,11.90087681,156.02,156.0,3.61822495]
[1751309443557,11.90087681,156.02,155.99,3.61822495]
[1751309444157,11.90087681,156.02,155.98,6.41100181]
[1751309444358,11.90087681,156.02,155.99,3.61822495]
[1751309445645,11.90087681,156.02,155.99,10.02869891]
[1751309445960,11.90087681,156.02,156.01,29.61822495]
[1751309446139,11.90087681,156.02,156.01,35.62431406]
[1751309447166,11.90087681,156.02,156.01,42.03415958]
[1751309447559,11.90087681,156.02,156.01,61.11029315]
[1751309447758,11.90087681,156.02,156.01,55.10420404]
[1751309448158,11.90087681,156.02,156.01,61.10056491]
[1751309449068,11.90087681,156.02,156.01,55.10420404]
[1751309450172,0.1,156.08,156.02,19.07613357]
[1751309450366,0.1,156.08,156.06,3.61822495]
[1751309450792,0.1,156.08,156.05,3.61822495]
[1751309451476,0.1,156.08,156.04,6.4085176]
[1751309451773,0.1,156.08,156.05,5.64831369]
[1751309453165,0.1,156.08,156.06,5.64831369]
[1751309453554,0.1,156.08,156.05,6.40818472]
[1751309453868,0.1,156.08,156.06,5.64831369]
[1751309454065,0.95,156.07,156.06,5.64831369]